{"text_format":"3","workbook":"xlsx","n_sheets":2,"sheets":["Factuur","Bedrijf instellen"],"not_rendered":{"images":1,"defined_names":27},"read":"whole","date_system":"1900"}

{"sheet":"Factuur","index":0,"n_rows":35,"n_cols":7,"rows_kept":35,"merged":[[1,1,1,2],[1,3,2,4],[1,6,2,6],[3,3,3,4],[4,3,4,4],[5,3,5,4],[23,1,23,3],[24,1,24,3],[25,1,25,3],[26,1,26,3],[34,1,34,4]]}
[null,"FACTUUR","0005"]
[null,{"$f":"TODAY()","v":"2018-07-13"},null,{"$f":"InvoiceTotal","v":79.65},null," ","Bedrijf instellen"]
[null,"TE BETALEN VÓÓR:",{"$f":"TODAY()+15","v":"2018-07-28"},null,null," "]
[null,"ARIETTE DE CROM",null,"ADVENTURE WORKS"]
[null,"Fabrikam, Inc.",null,"23456 Maple Street"]
[null,"1234 First Street",null,"Orange Grove, CA 09876"]
[null,"Forest, OR 12345"]
[null,"AANTAL","GEGEVENS","PRIJS PER EENHEID","REGELTOTAAL"]
[null,2,"Widgets",14.95,{"$f":"IFERROR(InvoiceDetails[[#This Row],[PRIJS PER EENHEID]]*InvoiceDetails[[#This Row],[AANTAL]],\"\")","v":{"v":29.9,"d":"29.90"}}]
[null,5,"Leertjes",9.95,{"$f":"IFERROR(InvoiceDetails[[#This Row],[PRIJS PER EENHEID]]*InvoiceDetails[[#This Row],[AANTAL]],\"\")","v":49.75}]
[{"$nulls":4},{"$f":"IFERROR(InvoiceDetails[[#This Row],[PRIJS PER EENHEID]]*InvoiceDetails[[#This Row],[AANTAL]],\"\")","v":0}]
[{"$nulls":4},{"$f":"IFERROR(InvoiceDetails[[#This Row],[PRIJS PER EENHEID]]*InvoiceDetails[[#This Row],[AANTAL]],\"\")","v":0}]
[{"$nulls":4},{"$f":"IFERROR(InvoiceDetails[[#This Row],[PRIJS PER EENHEID]]*InvoiceDetails[[#This Row],[AANTAL]],\"\")","v":0}]
[{"$nulls":4},{"$f":"IFERROR(InvoiceDetails[[#This Row],[PRIJS PER EENHEID]]*InvoiceDetails[[#This Row],[AANTAL]],\"\")","v":0}]
[{"$nulls":4},{"$f":"IFERROR(InvoiceDetails[[#This Row],[PRIJS PER EENHEID]]*InvoiceDetails[[#This Row],[AANTAL]],\"\")","v":0}]
[{"$nulls":4},{"$f":"IFERROR(InvoiceDetails[[#This Row],[PRIJS PER EENHEID]]*InvoiceDetails[[#This Row],[AANTAL]],\"\")","v":0}]
[{"$nulls":4},{"$f":"IFERROR(InvoiceDetails[[#This Row],[PRIJS PER EENHEID]]*InvoiceDetails[[#This Row],[AANTAL]],\"\")","v":0}]
[{"$nulls":4},{"$f":"IFERROR(InvoiceDetails[[#This Row],[PRIJS PER EENHEID]]*InvoiceDetails[[#This Row],[AANTAL]],\"\")","v":0}]
[{"$nulls":4},{"$f":"IFERROR(InvoiceDetails[[#This Row],[PRIJS PER EENHEID]]*InvoiceDetails[[#This Row],[AANTAL]],\"\")","v":0}]
[{"$nulls":4},{"$f":"IFERROR(InvoiceDetails[[#This Row],[PRIJS PER EENHEID]]*InvoiceDetails[[#This Row],[AANTAL]],\"\")","v":0}]
[{"$nulls":4},{"$f":"IFERROR(InvoiceDetails[[#This Row],[PRIJS PER EENHEID]]*InvoiceDetails[[#This Row],[AANTAL]],\"\")","v":0}]
[{"$nulls":4},{"$f":"IFERROR(InvoiceDetails[[#This Row],[PRIJS PER EENHEID]]*InvoiceDetails[[#This Row],[AANTAL]],\"\")","v":0}]
[{"$nulls":4},{"$f":"IFERROR(InvoiceDetails[[#This Row],[PRIJS PER EENHEID]]*InvoiceDetails[[#This Row],[AANTAL]],\"\")","v":0}]
[null,"Korting"]
[null,"Nettototaal",null,null,{"$f":"SUM(InvoiceDetails[REGELTOTAAL])-E24","v":{"v":79.65,"d":"€ 79.65"}}]
[null,"Belasting"]
[null,{"$f":"\"TOTAAL \" & REPT(CompanySetup_YourCurrencyAbbreviation,LEN(CompanySetup_YourCurrencyAbbreviation)>0)","v":"TOTAAL USD"},null,null,{"$f":"IFERROR(E25+E26, \"\")","v":{"v":79.65,"d":"€ 79.65"}}]
[null,"BETALINGSGEGEVENS",null,null,"OVERIGE INFORMATIE"]
[null,"Naam van begunstigde:",{"$f":" CompanySetup_BankBeneficiaryName","v":"Adventure Works"},null,{"$f":"IFERROR(CompanySetup_YourName,\"\")","v":""}]
[null,"Naam van bank:",{"$f":"CompanySetup_BankName","v":"Woodgrove Bank"},null,{"$f":"IFERROR(\"Telefoon: \" & CompanySetup_YourPhone,\"\")","v":"Telefoon: 425-555-0150"}]
[null,"Adres van bank:",{"$f":"CompanySetup_BankAddress","v":"234 Main St., Orange Grove, CA 09876"},null,{"$f":"IFERROR(\"Fax: \" & CompanySetup_YourFax,\"\")","v":"Fax: 425-555-0151"}]
[null,"Rekeningnummer:",{"$f":"CompanySetup_BankAccount","v":1234567},null,{"$f":"IFERROR(CompanySetup_YourURL,\"\")","v":"Adventure-Works.com"}]
[null,"Routeringsnummer (SWIFT-code):",{"$f":"CompanySetup_BankRouting","v":9876543210},null,{"$f":"IFERROR(CompanySetup_YourEmail,\"\")","v":"Accounting@Adventure-Works.com"}]
[null,"Betalingsreferentie:",{"$f":"InvoiceNumberDisplay","v":"0005"},null,{"$f":"IFERROR(IF(LEN(Client_PO),\"Contract/PO: \" & Client_PO,\"\"),\"\")","v":""}]
[null,{"$f":"UPPER(\"Betaling dient te geschieden via overschrijving of cheque op naam van\" & CompanySetup_CheckPayee& \".\")","v":"BETALING DIENT TE GESCHIEDEN VIA OVERSCHRIJVING OF CHEQUE OP NAAM VANADVENTURE WORKS."}]

{"sheet":"Bedrijf instellen","index":1,"n_rows":20,"n_cols":5,"rows_kept":20}
[null,"BEDRIJF INSTELLEN"]
[null,"GEGEVENS VAN FACTUREREND BEDRIJF","WAARDE",null,"Factuur"]
[null,"Naam","Greg Akselrod"]
[null,"Bedrijfsnaam","ADVENTURE WORKS"]
[null,"Adresregel 1","23456 Maple Street"]
[null,"Adresregel 2","Orange Grove, CA 09876"]
[null,"Adresregel 3"]
[null,"Adresregel 4"]
[null,"Adresregel 5"]
[null,"Telefoon","425-555-0150"]
[null,"Fax","425-555-0151"]
[null,"Website","Adventure-Works.com"]
[null,"E-mail","Accounting@Adventure-Works.com"]
[null,"Valuta-afkorting","USD"]
[null,"Naam van begunstigde voor bankoverschrijving","Adventure Works"]
[null,"Naam van bank","Woodgrove Bank"]
[null,"Adres van bank","234 Main St., Orange Grove, CA 09876"]
[null,"Rekeningnummer",1234567]
[null,"Routeringsnummer (SWIFT-code)",9876543210]
[null,"Schrijf cheques uit ten gunste van","Adventure Works"]